fUST/lending_fUST_20250630
["ID","MTS","AMOUNT","RATE_DAILY","PERIOD"]
[368615199,1751238643819,-551.66,0.00018864,2]
[368615200,1751238643829,-544.52,0.00018864,2]
[368615201,1751238643838,-622.18,0.00018864,2]
[368615202,1751238643848,-3282.0,0.00018864,2]
[368615203,1751238643857,-460.0,0.00018865,2]
[368615204,1751238643867,-460.0,0.00018865,2]
[368615205,1751238643876,-541.17,0.00018865,2]
[368615206,1751238643885,-460.0,0.00018865,2]
[368615207,1751238643895,-460.0,0.00018865,2]
[368615208,1751238643905,-460.0,0.00018865,2]
[368615209,1751238643916,-460.0,0.00018865,2]
[368615210,1751238643925,-503.6,0.00018865,2]
[368615211,1751238643936,-1047.88,0.00018865,2]
[368615212,1751238643945,-460.0,0.00018865,2]
[368615213,1751238643955,-460.0,0.00018865,2]
[368615214,1751238643965,-499.39,0.00018865,2]
[368615215,1751238643975,-460.0,0.00018865,2]
[368615216,1751238643985,-1332.96,0.00018865,2]
[368615217,1751238643994,-460.0,0.00018865,2]
[368615218,1751238644004,-460.0,0.00018865,2]
[368615219,1751238644014,-460.0,0.00018865,2]
[368615220,1751238644024,-1193.61,0.00018865,2]
[368615221,1751238644034,-1521.72,0.00018865,2]
[368615222,1751238644043,-460.0,0.00018865,2]
[368615223,1751238644053,-460.0,0.00018865,2]
[368615224,1751238644062,-460.0,0.00018865,2]
[368615225,1751238644072,-460.0,0.00018865,2]
[368615226,1751238644081,-460.0,0.00018865,2]
[368615227,1751238644091,-1265.89,0.00018865,2]
[368615228,1751238644101,-460.0,0.00018865,2]
[368615229,1751238644111,-460.0,0.00018865,2]
[368615230,1751238644120,-3339.46,0.00018865,2]
[368615231,1751238644130,-460.0,0.00018866,2]
[368615232,1751238644139,-500.0,0.00018866,2]
[368615233,1751238644149,-500.0,0.00018867,2]
[368615234,1751238644158,-1000.0,0.00018867,2]
[368615235,1751238644167,-460.0,0.00018867,2]
[368615236,1751238644176,-1000.0,0.00018869,2]
[368615237,1751238644185,-500.0,0.000189,2]
[368615238,1751238644194,-230.0,0.000189,2]
[368615239,1751238644203,-500.0,0.000189,2]
[368615240,1751238644211,-500.0,0.000189,2]
[368615241,1751238644221,-1657.46432436,0.000189,2]
[368615242,1751238644230,-3107.21242059,0.000189,2]
[368615243,1751238644242,-500.0,0.00018933,2]
[368615244,1751238644251,-500.0,0.00018933,2]
[368615245,1751238644260,-500.0,0.00018957,2]
[368615246,1751238644269,-406.0,0.00018961,2]
[368615247,1751238644278,-422.825,0.00018961,2]
[368615248,1751238644288,-500.0,0.00018967,2]
[368615249,1751238644297,-500.0,0.0001899,2]
[368615250,1751238644307,-500.0,0.0001899,2]
[368615251,1751238644316,-500.0,0.0001899,2]
[368615252,1751238644325,-500.0,0.0001899,2]
[368615253,1751238644335,-500.0,0.0001899,2]
[368615254,1751238644344,-500.0,0.0001899,2]
[368615255,1751238644353,-500.0,0.0001899,2]
[368615256,1751238644362,-500.0,0.0001899,2]
[368615257,1751238644372,-500.0,0.0001899,2]
[368615258,1751238644381,-5422.88678994,0.00019,2]
[368615259,1751238644390,-500.0,0.0001902,2]
[368615260,1751238644399,-500.0,0.000191,2]
[368615261,1751238644408,-500.0,0.000191,2]
[368615262,1751238644417,-3107.21242055,0.00019107,2]
[368615263,1751238644427,-460.0,0.00019121,2]
[368615265,1751238644436,-460.0,0.00019121,2]
[368615267,1751238644445,-1562.11,0.00019121,2]
[368615269,1751238644454,-303.53,0.00019135,2]
[368615270,1751238644463,-460.0,0.00019137,2]
[368615271,1751238644472,-460.0,0.00019137,2]
[368615272,1751238644482,-460.0,0.00019137,2]
[368615273,1751238644491,-317.98,0.00019137,2]
[368615274,1751238644500,-460.0,0.00019137,2]
[368615276,1751238644512,-1212.18,0.00019137,2]
[368615277,1751238644521,-460.0,0.00019137,2]
[368615278,1751238644531,-621.44,0.00019137,2]
[368615279,1751238644540,-460.0,0.00019137,2]
[368615280,1751238644550,-1498.96,0.00019137,2]
[368615281,1751238644559,-2216.86,0.00019137,2]
[368615282,1751238644568,-496.87,0.00019137,2]
[368615283,1751238644578,-3668.7,0.00019137,2]
[368615284,1751238644588,-531.67,0.00019137,2]
[368615285,1751238644597,-461.27,0.00019137,2]
[368615286,1751238644607,-514.8074049,0.00019137,2]
[368615287,1751238644616,-460.0,0.00019137,2]
[368615288,1751238644626,-460.0,0.00019137,2]
[368615289,1751238644636,-460.0,0.00019137,2]
[368615290,1751238644645,-460.0,0.00019137,2]
[368615292,1751238644655,-845.87,0.00019137,2]
[368615293,1751238644664,-500.0,0.00019137,2]
[368615294,1751238644675,-2386.6,0.00019137,2]
[368615295,1751238644683,-2394.52,0.00019137,2]
[368615296,1751238644693,-460.0,0.00019137,2]
[368615297,1751238644703,-2749.52,0.00019137,2]
[368615298,1751238644712,-460.0,0.00019137,2]
[368615299,1751238644721,-1291.38,0.00019137,2]
[368615300,1751238644730,-494.95,0.00019137,2]
[368615301,1751238644741,-949.09,0.00019137,2]
[368615302,1751238644750,-460.0,0.00019138,2]
[368615303,1751238644761,-460.0,0.00019138,2]
[368615304,1751238644770,-981.51,0.00019138,2]
[368615306,1751238644779,-460.0,0.00019138,2]
[368615308,1751238644789,-460.0,0.00019138,2]
[368615309,1751238644798,-460.0,0.00019138,2]
[368615310,1751238644807,-460.0,0.00019138,2]
[368615311,1751238644817,-460.0,0.00019138,2]
[368615312,1751238644827,-374.15,0.00019138,2]
[368615313,1751238644837,-460.0,0.00019138,2]
[368615314,1751238644846,-968.62,0.00019138,2]
[368615315,1751238644855,-460.0,0.00019138,2]
[368615316,1751238644865,-654.36,0.00019138,2]
[368615317,1751238644873,-544.52,0.00019138,2]
[368615318,1751238644882,-622.18,0.00019138,2]
[368615319,1751238644892,-3282.0,0.00019138,2]
[368615320,1751238644901,-495.05,0.00019139,2]
[368615321,1751238644910,-460.0,0.00019139,2]
[368615322,1751238644920,-460.0,0.00019139,2]
[368615323,1751238644930,-460.0,0.00019139,2]
[368615324,1751238644939,-503.6,0.00019139,2]
[368615325,1751238644948,-1047.88,0.00019139,2]
[368615326,1751238644958,-460.0,0.00019139,2]
[368615327,1751238644967,-535.69,0.00019139,2]
[368615328,1751238644976,-499.39,0.00019139,2]
[368615329,1751238644985,-460.0,0.00019139,2]
[368615330,1751238644995,-1332.96,0.00019139,2]
[368615331,1751238645005,-460.0,0.00019139,2]
[368615332,1751238645015,-460.0,0.00019139,2]
[368615335,1751238645025,-460.0,0.00019139,2]
[368615337,1751238645034,-1521.72,0.00019139,2]
[368615339,1751238645043,-1193.61,0.00019139,2]
[368615341,1751238645053,-460.0,0.00019139,2]
[368615343,1751238645063,-460.0,0.00019139,2]
[368615344,1751238645073,-1265.89,0.00019139,2]
[368615345,1751238645082,-3339.46,0.00019139,2]
[368615346,1751238645091,-460.0,0.0001914,2]
[368615347,1751238645101,-1000.0,0.0001914,2]
[368615348,1751238645110,-1013.29780013,0.00019142,2]
[368615349,1751238645120,-1012.60085007,0.00019143,2]
[368615350,1751238645130,-151.0,0.00019178,2]
[368615351,1751238645140,-274.97182,0.00019178,2]
[368615352,1751238645150,-151.0,0.00019178,2]
[368615353,1751238645159,-151.0,0.00019178,2]
[368615354,1751238645169,-500.0,0.00019178,2]
[368615355,1751238645180,-233.66999472,0.00019178,2]
[368615356,1751238645189,-680.416901,0.00019178,2]
[368615357,1751238645199,-55349.0902884,0.00019178,2]
[368615358,1751238645208,-917.48184911,0.00019293,2]
[368615359,1751238645217,-3107.21242055,0.00019314,2]
[368615360,1751238645225,-2089.93448205,0.00019315,2]
[368615361,1751238645236,-100000.0,0.00019329,2]
[368615362,1751238645246,-549.8383879,0.00019388,2]
[368615363,1751238645255,-460.0,0.00019395,2]
[368615364,1751238645266,-460.0,0.00019395,2]
[368615365,1751238645276,-1562.11,0.00019395,2]
[368615366,1751238645285,-1000.0,0.000194,2]
[368615367,1751238645295,-500.0,0.000194,2]
[368615368,1751238645304,-344.8429154,0.00019409,2]
[368615369,1751238645319,-1000.0,0.00019409,2]
[368615371,1751238645329,-1000.0,0.00019409,2]
[368615373,1751238645338,-1000.0,0.00019409,2]
[368615375,1751238645347,-500.0,0.00019409,2]
[368615377,1751238645357,-1000.2495824,0.00019409,2]
[368615379,1751238645367,-1000.0,0.00019409,2]
[368615382,1751238645376,-1000.0,0.00019409,2]
[368615384,1751238645385,-1000.0,0.00019409,2]
[368615386,1751238645397,-1002.29311935,0.00019409,2]
[368615388,1751238645406,-570.63770282,0.00019409,2]
[368615390,1751238645416,-500.84850324,0.00019409,2]
[368615391,1751238645425,-500.0,0.00019409,2]
[368615392,1751238645435,-1000.0,0.00019409,2]
[368615393,1751238645445,-500.0,0.00019409,2]
[368615394,1751238645454,-1000.0,0.00019409,2]
[368615395,1751238645463,-500.0,0.00019409,2]
[368615396,1751238645472,-500.0,0.00019409,2]
[368615397,1751238645482,-431.37372499,0.00019409,2]
[368615398,1751238645492,-1000.0,0.00019409,2]
[368615399,1751238645501,-1000.0,0.00019409,2]
[368615400,1751238645511,-500.0,0.00019409,2]
[368615401,1751238645520,-1000.0,0.00019409,2]
[368615402,1751238645529,-501.56666616,0.00019409,2]
[368615404,1751238645539,-460.0,0.00019411,2]
[368615406,1751238645548,-436.00538486,0.00019411,2]
[368615408,1751238645558,-460.0,0.00019411,2]
[368615409,1751238645567,-460.0,0.00019411,2]
[368615410,1751238645577,-1212.18,0.00019411,2]
[368615411,1751238645586,-359.52,0.00019411,2]
[368615412,1751238645595,-621.44,0.00019411,2]
[368615413,1751238645605,-460.0,0.00019411,2]
[368615414,1751238645614,-1498.96,0.00019411,2]
[368615415,1751238645623,-2216.86,0.00019411,2]
[368615416,1751238645633,-3668.7,0.00019411,2]
[368615417,1751238645642,-531.67,0.00019411,2]
[368615418,1751238645652,-461.27,0.00019411,2]
[368615419,1751238645661,-460.0,0.00019411,2]
[368615420,1751238645671,-460.0,0.00019411,2]
[368615421,1751238645681,-460.0,0.00019411,2]
[368615422,1751238645691,-845.87,0.00019411,2]
[368615423,1751238645701,-2386.6,0.00019411,2]
[368615424,1751238645710,-2394.52,0.00019411,2]
[368615425,1751238645719,-460.0,0.00019411,2]
[368615426,1751238645729,-2749.52,0.00019411,2]
[368615427,1751238645738,-460.0,0.00019411,2]
[368615428,1751238645747,-1291.38,0.00019411,2]
[368615429,1751238645758,-949.09,0.00019411,2]
[368615430,1751238645767,-460.0,0.00019412,2]
[368615431,1751238645776,-460.0,0.00019412,2]
[368615432,1751238645785,-981.51,0.00019412,2]
[368615433,1751238645795,-460.0,0.00019412,2]
[368615434,1751238645804,-460.0,0.00019412,2]
[368615435,1751238645814,-153.71,0.00019412,2]
[368615436,1751238645826,-460.0,0.00019412,2]
[368615437,1751238645835,-460.0,0.00019412,2]
[368615438,1751238645845,-460.0,0.00019412,2]
[368615439,1751238645855,-968.62,0.00019412,2]
[368615440,1751238645864,-460.0,0.00019412,2]
[368615441,1751238645874,-654.36,0.00019412,2]
[368615442,1751238645883,-544.52,0.00019412,2]
[368615443,1751238645893,-622.18,0.00019412,2]
[368615444,1751238645904,-3282.0,0.00019412,2]
[368615445,1751238645914,-595.12,0.00019413,2]
[368615446,1751238645923,-460.0,0.00019413,2]
[368615447,1751238645933,-460.0,0.00019413,2]
[368615448,1751238645943,-503.6,0.00019413,2]
[368615449,1751238645952,-1047.88,0.00019413,2]
[368615450,1751238645962,-460.0,0.00019413,2]
[368615451,1751238645971,-499.39,0.00019413,2]
[368615452,1751238645981,-1332.96,0.00019413,2]
[368615453,1751238645990,-460.0,0.00019413,2]
[368615454,1751238646000,-1521.72,0.00019413,2]
[368615455,1751238646010,-1193.61,0.00019413,2]
[368615456,1751238646019,-460.0,0.00019413,2]
[368615457,1751238646029,-460.0,0.00019413,2]
[368615458,1751238646038,-1265.89,0.00019413,2]
[368615459,1751238646048,-3339.46,0.00019413,2]
[368615460,1751238646057,-500.0,0.00019413,2]
[368615461,1751238646067,-500.0,0.00019413,2]
[368615462,1751238646076,-500.0,0.00019413,2]
[368615463,1751238646086,-1076.91869798,0.00019413,2]
[368615464,1751238646095,-500.0,0.00019413,2]
[368615465,1751238646104,-1076.91869798,0.00019413,2]
[368615466,1751238646114,-500.0,0.00019413,2]
[368615467,1751238646123,-500.0,0.00019413,2]
[368615468,1751238646132,-500.0,0.00019413,2]
[368615469,1751238646141,-1076.91869798,0.00019413,2]
[368615470,1751238646150,-1076.91869798,0.00019413,2]
[368615471,1751238646159,-500.0,0.00019413,2]
[368615472,1751238646169,-492.73772463,0.00019413,2]
[368615473,1751238646178,-500.0,0.00019413,2]
[368615474,1751238646187,-1076.91869798,0.00019413,2]
[368615475,1751238646196,-1076.91869798,0.00019413,2]
[368615476,1751238646205,-500.0,0.00019413,2]
[368615477,1751238646214,-1076.91869798,0.00019413,2]
[368615478,1751238646223,-390.13654751,0.00019413,2]
[368615479,1751238646235,-500.0,0.00019413,2]
[368615480,1751238646244,-500.0,0.00019413,2]
[368615481,1751238646253,-1076.91869798,0.00019413,2]
[368615483,1751238646387,-500.0,0.00019413,2]
[368615484,1751238646397,-1076.91869798,0.00019413,2]
[368615485,1751238646407,-500.0,0.00019413,2]
[368615486,1751238646416,-500.0,0.00019413,2]
[368615487,1751238646426,-500.0,0.00019413,2]
[368615488,1751238646435,-500.0,0.00019413,2]
[368615489,1751238646445,-500.0,0.00019413,2]
[368615490,1751238646454,-460.0,0.00019414,2]
[368615491,1751238646464,-500.0,0.00019415,2]
[368615492,1751238646473,-151.0,0.00019415,2]
[368615493,1751238646483,-151.0,0.00019415,2]
[368615494,1751238646492,-151.0,0.00019415,2]
[368615495,1751238646501,-207.4,0.00019429,2]
[368615496,1751238646511,-5000.0,0.00019429,2]
[368615497,1751238646520,-500.0,0.00019429,2]
[368615498,1751238646530,-500.0,0.00019429,2]
[368615499,1751238646539,-500.0,0.00019429,2]
[368615500,1751238646548,-500.0,0.00019429,2]
[368615501,1751238646557,-500.0,0.00019429,2]
[368615502,1751238646566,-500.0,0.00019429,2]
[368615503,1751238646575,-1455.47552097,0.00019429,2]
[368615504,1751238646585,-647.10864089,0.00019429,2]
[368615505,1751238646594,-690.642,0.00019429,2]
[368615506,1751238646604,-151.0,0.00019429,2]
[368615507,1751238646613,-500.0,0.00019429,2]
[368615508,1751238646622,-151.0,0.00019429,2]
[368615509,1751238646631,-500.0,0.00019429,2]
[368615510,1751238646641,-291.5243871,0.00019429,2]
[368615511,1751238646650,-500.0,0.00019429,2]
[368615512,1751238646659,-500.0,0.00019429,2]
[368615513,1751238646668,-500.0,0.00019429,2]
[368615514,1751238646679,-500.0,0.00019429,2]
[368615515,1751238646688,-182.3598853,0.00019429,2]
[368615516,1751238646698,-500.0,0.00019429,2]
[368615517,1751238646707,-151.66540298,0.00019429,2]
[368615518,1751238646725,-500.0,0.00019429,2]
[368615519,1751238646738,-500.0,0.00019429,2]
[368615520,1751238646749,-500.0,0.00019429,2]
[368615521,1751238646760,-500.0,0.00019429,2]
[368615522,1751238646770,-500.0,0.00019429,2]
[368615523,1751238646780,-500.0,0.00019429,2]
[368615524,1751238646790,-25000.0,0.00019429,2]
[368615525,1751238646801,-500.0,0.00019429,2]
[368615526,1751238646811,-500.0,0.00019429,2]
[368615527,1751238646821,-500.0,0.00019429,2]
[368615528,1751238646831,-500.0,0.00019429,2]
[368615529,1751238646841,-500.0,0.00019429,2]
[368615530,1751238646851,-500.0,0.00019429,2]
[368615531,1751238646861,-500.0,0.00019429,2]
[368615532,1751238646871,-151.0,0.00019429,2]
[368615533,1751238646881,-151.0,0.00019429,2]
[368615534,1751238646891,-198.0,0.00019429,2]
[368615535,1751238646901,-151.0,0.00019429,2]
[368615536,1751238646911,-1081.22757524,0.00019448,2]
[368615537,1751238646921,-1000.0,0.00019448,2]
[368615538,1751238646931,-1000.0,0.00019448,2]
[368615539,1751238646941,-539.76633697,0.00019459,2]
[368615540,1751238646951,-500.0,0.00019481,2]
[368615541,1751238646961,-1000.0,0.00019481,2]
[368615542,1751238646972,-716.195754,0.00019484,2]
[368615543,1751238646982,-230.30207649,0.00019487,2]
[368615544,1751238646992,-160.0,0.00019487,2]
[368615545,1751238647002,-160.0,0.00019487,2]
[368615546,1751238647013,-160.0,0.00019487,2]
[368615547,1751238647023,-837.1293463,0.00019487,2]
[368615548,1751238647033,-160.0,0.00019487,2]
[368615549,1751238647042,-847.31290578,0.00019487,2]
[368615550,1751238647052,-213.82031328,0.00019487,2]
[368615551,1751238647062,-214.97967293,0.00019487,2]
[368615552,1751238647073,-12567.05932091,0.00019487,2]
[368615553,1751238647083,-160.0,0.00019487,2]
[368615554,1751238647093,-160.0,0.000195,2]
[368615555,1751238647103,-160.0,0.000195,2]
[368615556,1751238647112,-160.0,0.000195,2]
[368615557,1751238647122,-1000.0,0.00019505,2]
[368615558,1751238647132,-500.0,0.00019515,2]
[368615559,1751238647142,-3107.21242055,0.00019521,2]
[368615560,1751238647152,-500.0,0.00019538,2]
[368615561,1751238647161,-500.0,0.00019538,2]
[368615562,1751238647171,-267.06231988,0.00019538,2]
[368615563,1751238647182,-500.0,0.00019538,2]
[368615564,1751238647192,-1031.97906164,0.00019538,2]
[368615565,1751238647202,-1000.0,0.00019538,2]
[368615566,1751238647212,-586.29415614,0.00019538,2]
[368615567,1751238647225,-742.6949969,0.00019539,2]
[368615568,1751238647236,-613.9470031,0.00019594,2]
[368615569,1751238647247,-540.73312332,0.00019606,2]
[368615570,1751238647257,-500.68364037,0.00019606,2]
[368615571,1751238647267,-377.86166272,0.00019606,2]
[368615572,1751238647277,-1000.0,0.00019648,2]
[368615573,1751238647288,-363.0,0.00019662,2]
[368615574,1751238647299,-363.0,0.00019663,2]
[368615575,1751238647309,-460.0,0.00019669,2]
[368615576,1751238647319,-460.0,0.00019669,2]
[368615577,1751238647329,-1562.11,0.00019669,2]
[368615578,1751238647340,-460.0,0.00019685,2]
[368615579,1751238647351,-460.0,0.00019685,2]
[368615580,1751238647361,-1212.18,0.00019685,2]
[368615581,1751238647371,-621.44,0.00019685,2]
[368615582,1751238647381,-460.0,0.00019685,2]
[368615583,1751238647391,-1498.96,0.00019685,2]
[368615584,1751238647400,-2216.86,0.00019685,2]
[368615585,1751238647410,-3668.7,0.00019685,2]
[368615586,1751238647420,-531.67,0.00019685,2]
[368615587,1751238647430,-461.27,0.00019685,2]
[368615588,1751238647439,-460.0,0.00019685,2]
[368615589,1751238647449,-460.0,0.00019685,2]
[368615590,1751238647458,-460.0,0.00019685,2]
[368615591,1751238647468,-845.87,0.00019685,2]
[368615592,1751238647478,-2386.6,0.00019685,2]
[368615593,1751238647487,-2394.52,0.00019685,2]
[368615594,1751238647498,-460.0,0.00019685,2]
[368615595,1751238647508,-2749.52,0.00019685,2]
[368615596,1751238647518,-460.0,0.00019685,2]
[368615597,1751238647527,-1291.38,0.00019685,2]
[368615598,1751238647536,-949.09,0.00019685,2]
[368615599,1751238647546,-460.0,0.00019686,2]
[368615600,1751238647555,-460.0,0.00019686,2]
[368615601,1751238647565,-981.51,0.00019686,2]
[368615602,1751238647575,-460.0,0.00019686,2]
[368615603,1751238647585,-460.0,0.00019686,2]
[368615604,1751238647594,-460.0,0.00019686,2]
[368615605,1751238647603,-351.9,0.00019686,2]
[368615606,1751238647612,-460.0,0.00019686,2]
[368615607,1751238647622,-968.62,0.00019686,2]
[368615608,1751238647631,-460.0,0.00019686,2]
[368615609,1751238647641,-654.36,0.00019686,2]
[368615610,1751238647651,-544.52,0.00019686,2]
[368615611,1751238647660,-622.18,0.00019686,2]
[368615612,1751238647671,-3282.0,0.00019686,2]
[368615613,1751238647680,-460.0,0.00019687,2]
[368615614,1751238647690,-460.0,0.00019687,2]
[368615615,1751238647700,-151.0,0.00019687,2]
[368615616,1751238647709,-151.0,0.00019687,2]
[368615617,1751238647719,-503.6,0.00019687,2]
[368615618,1751238647728,-1047.88,0.00019687,2]
[368615619,1751238647738,-460.0,0.00019687,2]
[368615620,1751238647747,-151.0,0.00019687,2]
[368615621,1751238647757,-151.0,0.00019687,2]
[368615622,1751238647767,-499.39,0.00019687,2]
[368615623,1751238647776,-1332.96,0.00019687,2]
[368615624,1751238647786,-460.0,0.00019687,2]
[368615625,1751238647795,-1521.72,0.00019687,2]
[368615626,1751238647805,-1193.61,0.00019687,2]
[368615627,1751238647815,-151.0,0.00019687,2]
[368615628,1751238647824,-460.0,0.00019687,2]
[368615629,1751238647834,-151.0,0.00019687,2]
[368615630,1751238647843,-1265.89,0.00019687,2]
[368615631,1751238647853,-3339.46,0.00019687,2]
[368615632,1751238647863,-153.371078,0.00019687,2]
[368615633,1751238647872,-153.371078,0.00019687,2]
[368615634,1751238647882,-460.0,0.00019688,2]
[368615635,1751238647891,-151.0,0.00019688,2]
[368615636,1751238647901,-151.0,0.00019688,2]
[368615637,1751238647911,-151.0,0.00019688,2]
[368615638,1751238647921,-151.0,0.00019688,2]
[368615639,1751238647931,-151.0,0.00019688,2]
[368615640,1751238647940,-183.558493,0.00019688,2]
[368615641,1751238647949,-183.558493,0.00019688,2]
[368615642,1751238647959,-305.317641,0.00019688,2]
[368615643,1751238647968,-305.317641,0.00019688,2]
[368615644,1751238647978,-154.393716,0.00019699,2]
[368615645,1751238647987,-151.0,0.00019699,2]
[368615646,1751238647997,-458.942417,0.00019699,2]
[368615647,1751238648007,-458.942417,0.00019699,2]
[368615648,1751238648017,-639.89557,0.00019699,2]
[368615649,1751238648027,-639.89557,0.00019699,2]
[368615650,1751238648037,-151.0,0.00019699,2]
[368615651,1751238648046,-1678.837972,0.00019699,2]
[368615652,1751238648056,-1678.837972,0.00019699,2]
[368615653,1751238648066,-3107.21242055,0.00019728,2]
[368615654,1751238648076,-485.219964,0.00019728,2]
[368615655,1751238648086,-485.219964,0.00019728,2]
[368615656,1751238648096,-942.246184,0.000198,2]
[368615657,1751238648105,-151.0,0.000198,2]
[368615658,1751238648115,-485.219964,0.000198,2]
[368615659,1751238648124,-485.219964,0.000198,2]
[368615660,1751238648134,-458.942417,0.000198,2]
[368615661,1751238648144,-458.942417,0.000198,2]
[368615662,1751238648153,-639.89557,0.000198,2]
[368615663,1751238648163,-639.89557,0.000198,2]
[368615664,1751238648172,-151.0,0.000198,2]
[368615665,1751238648182,-1678.837972,0.000198,2]
[368615666,1751238648191,-1678.837972,0.000198,2]
[368615667,1751238648201,-12567.05932091,0.000198,3]
[368615668,1751238648211,-213.82031328,0.000198,3]
[368615669,1751238648220,-160.0,0.000198,3]
[368615670,1751238648230,-847.31290578,0.000198,3]
[368615671,1751238648244,-2089.93448205,0.00019863,2]
[368615672,1751238648254,-3107.21242055,0.00019934,2]
[368615673,1751238648265,-460.0,0.00019943,2]
[368615674,1751238648274,-460.0,0.00019943,2]
[368615675,1751238648284,-1562.11,0.00019943,2]
[368615676,1751238648293,-1500.0,0.00019948,2]
[368615677,1751238648303,-1500.0,0.00019956,2]
[368615678,1751238648315,-232.44969831,0.00019956,2]
[368615679,1751238648325,-1500.0,0.00019956,2]
[368615680,1751238648334,-500.0,0.00019956,2]
[368615681,1751238648344,-500.0,0.00019956,2]
[368615682,1751238648354,-500.0,0.00019956,2]
[368615683,1751238648363,-500.0,0.00019956,2]
[368615684,1751238648373,-500.0,0.00019956,2]
[368615685,1751238648383,-231.43256101,0.00019956,2]
[368615686,1751238648392,-64045.45310014,0.00019959,2]
[368615687,1751238648401,-460.0,0.00019959,2]
[368615688,1751238648411,-460.0,0.00019959,2]
[368615689,1751238648420,-1212.18,0.00019959,2]
[368615690,1751238648429,-621.44,0.00019959,2]
[368615691,1751238648438,-460.0,0.00019959,2]
[368615692,1751238648448,-1498.96,0.00019959,2]
[368615693,1751238648457,-262.65229,0.00019959,2]
[368615694,1751238648467,-2216.86,0.00019959,2]
[368615695,1751238648477,-3668.7,0.00019959,2]
[368615696,1751238648487,-531.67,0.00019959,2]
[368615697,1751238648496,-461.27,0.00019959,2]
[368615698,1751238648506,-460.0,0.00019959,2]
[368615699,1751238648516,-460.0,0.00019959,2]
[368615700,1751238648525,-460.0,0.00019959,2]
[368615701,1751238648535,-845.87,0.00019959,2]
[368615702,1751238648544,-2386.6,0.00019959,2]
[368615703,1751238648554,-2394.52,0.00019959,2]
[368615704,1751238648563,-460.0,0.00019959,2]
[368615705,1751238648572,-2749.52,0.00019959,2]
[368615706,1751238648582,-460.0,0.00019959,2]
[368615707,1751238648591,-151.0,0.00019959,2]
[368615708,1751238648601,-420.0,0.00019959,2]
[368615709,1751238648610,-318.0,0.00019959,2]
[368615710,1751238648619,-151.0,0.00019959,2]
[368615711,1751238648628,-1291.38,0.00019959,2]
[368615712,1751238648638,-949.09,0.00019959,2]
[368615713,1751238648647,-151.0,0.00019959,2]
[368615714,1751238648657,-122659.73422879,0.0001996,2]
[368615715,1751238648667,-460.0,0.0001996,2]
[368615716,1751238648676,-981.51,0.0001996,2]
[368615717,1751238648685,-460.0,0.0001996,2]
[368615718,1751238648694,-460.0,0.0001996,2]
[368615719,1751238648704,-460.0,0.0001996,2]
[368615720,1751238648713,-460.0,0.0001996,2]
[368615721,1751238648722,-968.62,0.0001996,2]
[368615722,1751238648732,-460.0,0.0001996,2]
[368615723,1751238648741,-654.36,0.0001996,2]
[368615724,1751238648751,-544.52,0.0001996,2]
[368615725,1751238648762,-622.18,0.0001996,2]
[368615726,1751238648772,-3282.0,0.0001996,2]